Cogmind - Beta 16 @@@ ROGUE MODE // 2026.01.27 @ 23:14:37 Player: applejuice Result: Destroyed by G-34 Mercenary with Small Laser Performance ------------- Evolutions (1) 500 Regions Visited (3) 600 Robots Destroyed (32) 160 Value Destroyed (769) 769 Prototype IDs (0) 0 Alien Tech Used (0) 0 Bonus (0) 0 TOTAL SCORE: 2029 Bonus ------- None Cogmind --------- Core Integrity 0/400 Matter 379/400 Energy 125/125 System Corruption 0% Temperature Cool (6) Movement Rolling (165) Ox5 Location -9/Mines Parts ------- > --- POWER (1) -------- Light Ion Engine > --- PROPULSION (2) --- Compact Wheel > --- UTILITY (4) ------ Huge Storage Unit Medium Matter Pod Visual Processing Unit Light Armor Plating > --- WEAPON (2) ------- Beam Rifle Rocket Launcher > --- INVENTORY (25) --- Light Treads Light Treads Aluminum Leg Aluminum Leg Aluminum Leg Aluminum Leg Wheel Compact Wheel Small Storage Unit Large Storage Unit Large Storage Unit EM Pulse Gun Small Laser Small Laser Grenade Launcher Peak State ------------ > --- POWER ------------ Light Ion Engine > --- PROPULSION ------- Compact Wheel Compact Wheel > --- UTILITY ---------- Huge Storage Unit Visual Processing Unit Visual Processing Unit Visual Processing Unit > --- WEAPON ----------- Assault Rifle Light Cannon > --- INVENTORY -------- Light Ion Engine Light Treads Light Treads Wheel Small Storage Unit Large Storage Unit Large Storage Unit EM Pulse Gun EM Pulse Gun Grenade Launcher [Rating: 13] Favorites ----------- Power Light Ion Engine Engine Light Ion Engine Propulsion Compact Wheel Treads Light Treads Leg Aluminum Leg Wheel Compact Wheel Utility Visual Processing Unit Device Tractor Beam Storage Huge Storage Unit Processor Visual Processing Unit Protection Light Armor Plating Weapon Assault Rifle Energy Gun EM Pulse Gun Ballistic Gun Assault Rifle Ballistic Cannon Light Cannon Launcher Grenade Launcher Build | -11 -10 -9 -9 ------- Run | Yrd Mat Mat Min Slots Evolved 2 | . . 2 . Power . | . . . . Propulsion . | . . . . Utility 2 | . . 2 . Weapon . | . . . . Parts Attached 36 | 6 4 25 1 Power 4 | 1 . 3 . Engine 4 | 1 . 3 . Core . | . . . . Reactor . | . . . . Propulsion 12 | 2 1 9 . Treads 2 | . . 2 . Leg 2 | . . 2 . Wheel 8 | 2 1 5 . Hover . | . . . . Flight . | . . . . Utility 10 | 1 2 7 . Device 1 | . . 1 . Storage 4 | 1 2 1 . Processor 3 | . . 3 . Hackware . | . . . . Protection 2 | . . 2 . Artifact . | . . . . Weapon 10 | 2 1 6 1 Energy Gun 4 | 1 . 3 . Energy Cannon . | . . . . Ballistic Gun 3 | 1 . 2 . Ballistic Cannon 1 | . 1 . . Launcher 2 | . . 1 1 Special Weapon . | . . . . Impact Weapon . | . . . . Slashing Weapon . | . . . . Piercing Weapon . | . . . . Special Melee Weapon . | . . . . Unidentified Prototypes . | . . . . Parts Lost 17 | . . 16 1 Power 3 | . . 3 . Propulsion 7 | . . 6 1 Utility 2 | . . 2 . Weapon 5 | . . 5 . Highest Loss Streak 10 | . . 10 1 To Critical Strikes . | . . . . Average Backups 12 | 1 6 15 14 Power 1 | . 1 1 . Propulsion 5 | . 2 6 8 Utility 2 | . . 3 3 Weapon 3 | . 2 4 3 Tool/Special . | . . . . Unused Backups 6 | . . . 6 Power . | . . . . Propulsion 4 | . . . 4 Utility 1 | . . . 1 Weapon 1 | . . . 1 Tool/Special . | . . . . Average Slot Usage (%) 88 | . 89 87 97 Engine 8 | . 14 6 11 Wheel 21 | . 28 18 19 Device 1 | . . 1 . Storage 16 | . 18 15 22 Processor 12 | . . 17 11 Protection 3 | . . 3 11 Energy Gun 5 | . 3 3 20 Ballistic Gun 9 | . 14 9 . Ballistic Cannon 7 | . 10 7 . Peak Build Rating 13 | 6 7 13 12 Average Rating 9 | 5 6 11 11 On Entrance 6 | . 6 7 12 Avg Prop Armor Cover (%) . | . . . . Naked Turns . | . . . . Heaviest Build 95 | 12 88 93 95 Greatest Support 40 | 26 32 40 26 Greatest Overweight (x) 9 | . 2 9 5 Average Overweight (x) 1 | . . 2 3 Largest Inventory Capacity 25 | 8 25 25 25 Average Capacity 20 | 7 12 25 25 Most Carried 21 | 4 10 21 15 Average Carried 12 | 1 7 15 14 Final Capacity 25 | 8 25 25 25 Final Carried 15 | 4 10 14 15 Class Distribution -------------------- 76% | Mutant 23% | Scavenger-Mutant Dominant Class ---------------- Mutant | -10/Materials Mutant | -9/Materials Scavenger-Mutant | -9/Mines Resources | -11 -10 -9 -9 ----------- Run | Yrd Mat Mat Min Matter Collected 1039 | 249 128 662 . Remotely 165 | . . 165 . Salvage Created 1066 | . 128 872 66 Parts 64 | . 5 57 2 Haulers Intercepted 1 | . . 1 . Recyclers Shooed 4 | . . 4 . Parts Field Recycled . | . . . . Retrieved Matter . | . . . . Parts Self-Destructed . | . . . . Prevented . | . . . . Parts Restored . | . . . . Kills | -11 -10 -9 -9 ------- Run | Yrd Mat Mat Min Combat Hostiles Destroyed 20 | . 2 16 2 Guns 6 | . 1 5 . Cannons 5 | . 1 4 . AOE 9 | . . 7 2 Classes Destroyed 9 | . 3 6 . Worker 3 | . . 3 . Builder 1 | . . 1 . Hauler 1 | . . 1 . Recycler 5 | . 1 4 . Watcher 2 | . 1 1 . Swarmer 4 | . . 4 . Grunt 11 | . 2 7 2 Duelist 1 | . . 1 . Sentry 4 | . . 4 . Best Kill Streak 7 | . 3 7 2 Combat Bots Only 5 | . 2 5 2 Max Kills in Single Turn 3 | . 1 3 2 Gunslinging . | . . . . Exploded 2 | . . 2 2 Melee . | . . . . Uniques/NPCs Destroyed . | . . . . Combat | -11 -10 -9 -9 -------- Run | Yrd Mat Mat Min Hostile Shots Fired 169 | . 18 138 13 Missed 50 | . 2 41 7 Hits 119 | . 16 97 6 Melee 5 | . . 5 . Projectile 114 | . 16 92 6 Critical Strikes 2 | . . 2 . Damage Taken 1672 | . 224 1362 86 Core 440 | . 39 390 11 Absorbed by Shields . | . . . . Core Remaining (%) 92 | 100 84 . . Volleys Fired 68 | . 13 54 1 Largest 2 | . 2 2 2 Hottest 96 | . 60 96 89 Shots Fired 126 | . 26 98 2 Gun 80 | . 14 65 1 Cannon 38 | . 12 26 . Launcher 8 | . . 7 1 Special . | . . . . Kinetic 97 | . 25 72 . Thermal 8 | . . 7 1 Explosive 8 | . . 7 1 Electromagnetic 13 | . 1 12 . Robot Hit Streak 8 | . 3 8 2 Robot Miss Streak 3 | . 2 3 . Penetration Max . | . . . . Secondary Targets . | . . . . Shots Hit Robots 80 | . 14 65 1 Core Hits 50 | . 6 42 2 Critical Kills . | . . . . Critical Parts Destroyed . | . . . . Critical Strikes . | . . . . Melee Attacks . | . . . . Impact . | . . . . Slashing . | . . . . Piercing . | . . . . Sneak Attacks . | . . . . Combat Hostiles . | . . . . Follow-up Attacks . | . . . . Damage Inflicted 2068 | . 264 1692 112 Guns 695 | . 81 614 . Cannons 443 | . 140 303 . Explosions 918 | . 43 775 100 Melee . | . . . . Ramming 12 | . . . 12 Kinetic 973 | . 199 774 . Thermal 164 | . 43 121 . Explosive 819 | . . 719 100 Electromagnetic 100 | . 22 78 . Impact . | . . . . Slashing . | . . . . Piercing . | . . . . Highest Corruption . | . . . . Average Corruption . | . . . . Corruption Purged . | . . . . Corruption Blocked . | . . . . Overload Shots . | . . . . Overflow Damage 19 | . . 19 . Projectiles . | . . . . Explosions 19 | . . 19 . Melee . | . . . . Knockbacks 6 | . 2 4 . Impact . | . . . . Kinetic 6 | . 2 4 . Secondary . | . . . . Self-Inflicted Damage 58 | . 30 22 6 Shots 2 | . 1 1 . Rammed 1 | . . . 1 Targets Rammed 1 | . . . 1 Kicked . | . . . . Crushed . | . . . . Highest Temperature 108 | . 18 108 36 Average Temperature 20 | . 6 28 24 Received Heat Transfer 534 | . 108 387 39 Siege Activations . | . . . . Martial Activations . | . . . . Shielding Activations . | . . . . Robots Disrupted . | . . . . Combat Hostiles . | . . . . Robots Corrupted . | . . . . Combat Hostiles . | . . . . Parts Fried . | . . . . Impact Corruptions . | . . . . Robots Melted . | . . . . Combat Hostiles . | . . . . Parts Melted . | . . . . Heat Transferred 211 | . . 211 . Parts Sabotaged . | . . . . Parts Stolen . | . . . . Parts Stripped . | . . . . Power Chain Reactions 2 | . 1 1 . Alert | -11 -10 -9 -9 ------- Run | Yrd Mat Mat Min Maximum Alert Level . | . . . . Low Security (%) 100 | 100 100 100 100 Level 1 . | . . . . Level 2 . | . . . . Level 3 . | . . . . Level 4 . | . . . . Level 5 . | . . . . High Security . | . . . . Max Security . | . . . . Peak Influence 178 | . 47 178 113 Initial 51 | . . . 51 Average 62 | . 15 90 44 Influence Increases 725 | . 79 544 102 Destroy 0b10 Robot/C 400 | . 40 320 40 Destroy 0b10 Robot/NC 60 | . 10 50 . Destroy Leader 96 | . 12 74 10 Successful Hack 23 | . 12 11 . Disable Machine 45 | . . 15 30 Destroy Structure 56 | . 5 44 7 Lose Combat Pursuer 45 | . . 30 15 Influence Decreases 622 | . 76 415 131 Entered New Map 84 | . . 3 81 Time Decay 362 | . 76 246 40 Lost Part 170 | . . 160 10 Purge Threat 6 | . . 6 . Squads Dispatched 1 | . . 1 . Investigation . | . . . . Extermination . | . . . . Reinforcement 1 | . . 1 . Assault . | . . . . Garrison . | . . . . Intercept . | . . . . Searches Triggered . | . . . . Construction Impeded 1 | . . 1 . Haulers Reinforced . | . . . . Active Scanning Responses . | . . . . Cargo Convoy Interrupts . | . . . . Stealth | -11 -10 -9 -9 --------- Run | Yrd Mat Mat Min Distress Signals 1 | . . 1 . Communications Jammed . | . . . . Distress Signals . | . . . . Times Spotted 34 | . 3 24 7 Peak Tracking Total 7 | . 3 7 6 Tactical Retreats 3 | . . 2 1 Traps | -11 -10 -9 -9 ------- Run | Yrd Mat Mat Min Traps Triggered . | . . . . Indirectly . | . . . . Trap Hack Attempts . | . . . . Triggered . | . . . . Disarmed . | . . . . Reprogrammed . | . . . . Reused . | . . . . Traps Extracted . | . . . . Installed . | . . . . Triggered . | . . . . Machines | -11 -10 -9 -9 ---------- Run | Yrd Mat Mat Min Machines Disabled 3 | . . 1 2 Max in Single Turn 2 | . . 1 2 Machines Repaired . | . . . . Machines Dismantled . | . . . . Machines Sabotaged . | . . . . Overloaded Fab Kills . | . . . . Hacking | -11 -10 -9 -9 --------- Run | Yrd Mat Mat Min Machines Accessed 8 | . 4 4 . Terminals 7 | . 4 3 . Fabricators . | . . . . Repair Stations . | . . . . Recycling Units . | . . . . Scanalyzers 1 | . . 1 . Garrison Access . | . . . . Total Hacks 24 | . 10 14 . Successful 13 | . 3 10 . Failed 11 | . 7 4 . Catastrophic 1 | . 1 . . Database Lockouts . | . . . . Manual 18 | . 8 10 . Terminals 21 | . 10 11 . Fabricators . | . . . . Repair Stations . | . . . . Recycling Units . | . . . . Scanalyzers 3 | . . 3 . Garrison Access . | . . . . Terminal Hacks 4 | . 1 3 . Robot Analysis 1 | . 1 . . Terminal Index 1 | . . 1 . Alert Level 1 | . . 1 . Unreport Threat 1 | . . 1 . Fabricator Hacks . | . . . . Repair Station Hacks . | . . . . Recycling Unit Hacks . | . . . . Scanalyzer 3 | . . 3 . Retrieve Study 3 | . . 3 . Garrison Access Hacks . | . . . . Unauthorized Hacks 5 | . 2 3 . Terminals 5 | . 2 3 . Botnet 5 | . 2 3 . Fabricators . | . . . . Repair Stations . | . . . . Recycling Units . | . . . . Scanalyzers . | . . . . Garrison Access . | . . . . Data Cores Recovered . | . . . . Used . | . . . . Hacking Detections 8 | . 4 4 . Full Trace Events 1 | . 1 . . Feedback Events . | . . . . Feedback Blocked . | . . . . Robot Schematics Acquired . | . . . . Robots Built . | . . . . Authchips . | . . . . Time . | . . . . Total Robot Build Rating . | . . . . Part Schematics Acquired . | . . . . Parts Built . | . . . . Authchips . | . . . . Time . | . . . . Total Part Build Rating . | . . . . Part Studies Acquired 3 | . . 3 . Parts Repaired . | . . . . Time . | . . . . Parts Recycled . | . . . . Recycled Matter . | . . . . Retrieved Matter . | . . . . Retrieved Components . | . . . . Parts Scanalyzed . | . . . . Part Schematics Acquired . | . . . . Parts Damaged . | . . . . Bothacking | -11 -10 -9 -9 ------------ Run | Yrd Mat Mat Min Used RIF Installer . | . . . . Robots Hacked . | . . . . Non-combat . | . . . . Combat . | . . . . Robot Hacks Applied . | . . . . Relay Couplers Released . | . . . . Fabnet Peak Effective % . | . . . . Robots Rewired . | . . . . Allies Hacked . | . . . . Hacks Repelled . | . . . . Allies | -11 -10 -9 -9 -------- Run | Yrd Mat Mat Min Total Allies . | . . . . Largest Group . | . . . . Highest-Rated Group . | . . . . Highest-Rated Ally . | . . . . Total Orders . | . . . . Ally Attacks . | . . . . Total Damage . | . . . . Kills . | . . . . Allies Corrupted . | . . . . Allies Melted . | . . . . Intel | -11 -10 -9 -9 ------- Run | Yrd Mat Mat Min Active Infowar (turns) 636 | . . 551 85 Optics 636 | . . 551 85 Robot Analysis Total 1 | . 1 . . Derelict Logs Recovered . | . . . . Drone Launches . | . . . . Drone Recoveries . | . . . . Exploration | -11 -10 -9 -9 ------------- Run | Yrd Mat Mat Min Turns Passed 993 | 72 238 598 85 Spaces Moved 576 | 67 177 271 61 Core 3 | 3 . . . Treads 9 | . . 9 . Legs 3 | . . 3 . Wheels 561 | 64 177 259 61 Hover . | . . . . Flight . | . . . . Fastest Speed 50 | 50 90 125 125 Average Speed 122 | 89 106 140 128 Slowest Speed 400 | 100 130 400 165 Overloaded Moves . | . . . . Propulsion Burnouts . | . . . . Robots Hopped . | . . . . Potential Cave-ins . | . . . . Cave-ins Triggered . | . . . . Exploration Rate (%) 24 | 4 39 28 26 Regions Visited 3 Branch Regions 1 Pre-discovered Areas . | . . . . Known Exits Taken . | . . . . Unknown Exits Taken 3 | 1 1 1 . Scrap Searched 1 | . . . 1 Spaces Dug . | . . . . Terrain Destroyed 54 | . 5 40 9 Melee . | . . . . Projectile . | . . . . AOE 54 | . 5 40 9 Terrain Rammed . | . . . . Walls Destroyed . | . . . . Machines Disabled . | . . . . Actions | -11 -10 -9 -9 --------- Run | Yrd Mat Mat Min Total 723 | 76 200 382 65 Wait 10 | . 2 8 . Move 573 | 66 176 270 61 Hop . | . . . . Pick Up 19 | 4 2 13 . Fast Attach 21 | 6 3 11 1 Attach 13 | . . 13 . Detach 9 | . 3 5 1 Swap 9 | . 1 8 . Drop . | . . . . Fire 68 | . 13 54 1 Melee . | . . . . Ram 1 | . . . 1 Kick . | . . . . Crush . | . . . . Escape Stasis . | . . . . Rewire . | . . . . Trap . | . . . . Miscellaneous . | . . . . Route ------- -11/Scrapyard -10/Materials -9/Materials (discovered 2 exits: [*Min x2]) -9/Mines History --------- Turn | Location | Event 6 | -11/Scrapyard | Discovered new exit (range 15) 73 | -11/Scrapyard | Entered Materials 290 | -10/Materials | Discovered new exit (range 13) 311 | -10/Materials | Entered another Materials area 311 | -9/Materials | Evolved 2 slots: Utility x2 314 | -9/Materials | Build established: Mutant 521 | -9/Materials | Discovered new exit (range 17) 592 | -9/Materials | Core integrity fell below 50% 641 | -9/Materials | Lost 6 parts (1p2n1u2w) 788 | -9/Materials | Discovered new exit (range 9) 804 | -9/Materials | Core integrity fell below 20% 872 | -9/Materials | Lost 10 parts (2p4n1u3w) 909 | -9/Materials | Entered Mines 921 | -9/Mines | Joined a pair of Derelicts in attacking an 0b10 outpost 994 | -9/Mines | Destroyed by G-34 Mercenary with Small Laser Last Messages --------------- for a little while, just waiting for an opportunity to strike. Need some help?" 00925_ Machine disabled. 00927_ K-01 Serf collects debris. 00932_ Slammed into K-01 Serf. 00933_ K-01 Serf collects debris. 00933_ PR-2QR(g) destroyed. 00936_ K-01 Serf collects debris. 00949_ R-06 Scavenger suffers critical hit (Burn). 00976_ K-01 Serf collects debris. 00978_ Searching scrap... 00978_ Found Rocket Launcher. 00978_ Found 69 Matter. 00979_ Wheel+ destroyed. 00982_ Acquired Rocket Launcher. 00983_ G-34 Mercenary destroyed. 00983_ G-47 Trooper destroyed. 00983_ Pulverizer disabled. 00984_ K-01 Serf collects debris. Map ----- +----------------------------------------------------+ | ?????????? ????????????????????????? | | ?????????? ????????????????????????? | | ?????????? ????????????????????????? | | ?????????? ????????????????????????? | | ?????????? ????????????????????????? | | ?????????? ????????????????????????? | | ??????????# ????????????????????????? | | ??????????# #???????????????????????? | | ??????????# #???????????????????????? | | ??????????# #???????????????????????? | | ?????????? #???????????????????????? | | ??????????# #???????????????????????? | | ??????????# #???????????????????????? | | ??????????# ???????????????????????? | | ???????#### #???????????????????????? | | ??????## ##??????????????????????? | | ??????# ###########????????????? | | ??????# #????????????? | | ??????## #### #????????????? | | ???????### #??#l#????????????? | | ?????????## ##??# #????????????? | | ????????###### ###???#g#############? | | ????????# #?????# k #? | | ????????# #?????# #? | | ????????# ## ###?????# #? | | ????????# ## #???????# @ "" """" #? | | ????????# ## #????# "" """" #? | | ????????# ## ? ! "" """"???? | | ????????# ########## %* ???? | | ????????# #????????# % "" """" ??? | | ????????# #????????# "" """"???? | | ????????# #????????### "" """????? | | ????????# ##?????????# ????? | | ????????# ##""###???# """" """????? | | ????????# X #???# """" """????? | | ????????## ##??# """"????????? | | ???####### #??# ????????? | | ???# ## #??# ????????????? | | #####%#########??# ????????????? | | ????###?# ##????????# ????????????? | | ???##!!## #????????# ????????????? | | ???# ![ #= #?????????##????????????? | | ???# /% ##############??????????? | | ???# %/! ## #??????????? | | ???#"!! # ## """ #??????????? | | ???##!!## """ #??????????? | | ????###?## """ #??????????? | | ?????????###### #??????????? | | ??????????????# #??????????? | | ??????????????#############??????????? | +----------------------------------------------------+ Best States ------------- Heat Dissipation 28 Energy Generation 10 Energy Capacity 250 Matter Stores 400 Matter Capacity 400 Sight Range 18 Terrain Scan Density 10 Armor Coverage 150 Evasion (%) 42 Recoil Reduction 2 Item Schematics ----------------- None Robot Schematics ------------------ None Fabricated ------------ Nothing Repaired ---------- Nothing Studied --------- Wheel | -9/Materials | Hacked Com. Wheel | -9/Materials | Hacked Grenade Launcher | -9/Materials | Hacked Alien Tech Used ----------------- None Achievements -------------- None Challenges ------------ None Game ------ Seed RiotPiercingSubcomponent Manual? 0 Play Time 00:12:50 Cumulative 38.1 hours Start 2026.01.27 @ 23:02:22 End 2026.01.27 @ 23:14:37 Sessions 1 Manual Loads 0 Difficulty Rogue Special Mode None Game No. 46 Rogue 46 Adventurer 0 Explorer 0 Win Type - Total 0 Types 0/0/0/0/0/0/0/0/0/0 Lore% 32 Gallery% 33 Achievement% 28 Wizard Run 0 Options --------- Layout 1 ASCII 0 Keyboard 1 Movement Numpad Keybinds 0 Fullscreen 1 Font 48/Smallcaps Map View 50x35 Zoom Use 0% Tactical HUD 1 Map Filters NONE Filters NONE Steam 1 RUN: da473d40-3f11-4e25-b118-78d56635e23b